[Event "Titled Tuesday Blitz August 31 2021"]
[White "Tanenbaum, Zachary"]
[Black "Baches Garcia, Guillermo"]
[WhiteFideId "2060850"]
[BlackFideId "2209764"]
[WhiteElo "2165"]
[BlackElo "2514"]
[Result "1/2-1/2"]
[Round "06"]
[TimeControl "180+1"]
[Date "2021.08.31"]
[WhiteClock "0:00:22"]
[BlackClock "0:00:03"]

1. e4 {[%clk 0:02:59]}  c5 {[%clk 0:02:59]} 2. Nf3 {[%clk 0:02:59]}  d6 {[%clk 0:03:00]} 3. d4 {[%clk 0:03:00]}  cxd4 {[%clk 0:03:01]} 4. Nxd4 {[%clk 0:03:01]}  Nf6 {[%clk 0:03:01]} 5. Nc3 {[%clk 0:03:01]}  Nc6 {[%clk 0:03:01]} 6. Bg5 {[%clk 0:03:01]}  e6 {[%clk 0:03:02]} 7. Bb5 {[%clk 0:03:02]}  Bd7 {[%clk 0:03:01]} 8. Qd3 {[%clk 0:03:02]}  h6 {[%clk 0:03:01]} 9. Bh4 {[%clk 0:03:01]}  Qb6 {[%clk 0:02:49]} 10. O-O-O {[%clk 0:02:59]}  Nxd4 {[%clk 0:02:33]} 11. Bxd7+ {[%clk 0:02:23]}  Nxd7 {[%clk 0:02:21]} 12. Qxd4 {[%clk 0:02:24]}  Qxd4 {[%clk 0:02:20]} 13. Rxd4 {[%clk 0:02:24]}  a6 {[%clk 0:02:15]} 14. Bg3 {[%clk 0:02:21]}  e5 {[%clk 0:02:05]} 15. Rd2 {[%clk 0:02:19]}  Nf6 {[%clk 0:02:04]} 16. Bh4 {[%clk 0:02:14]}  g5 {[%clk 0:02:03]} 17. Bg3 {[%clk 0:02:14]}  Rc8 {[%clk 0:01:49]} 18. f3 {[%clk 0:02:14]}  h5 {[%clk 0:01:43]} 19. h4 {[%clk 0:02:13]}  g4 {[%clk 0:01:34]} 20. Kb1 {[%clk 0:02:12]}  gxf3 {[%clk 0:01:28]} 21. gxf3 {[%clk 0:02:13]}  Rg8 {[%clk 0:01:28]} 22. Bf2 {[%clk 0:02:04]}  Kd7 {[%clk 0:01:19]} 23. Be3 {[%clk 0:02:02]}  Ke6 {[%clk 0:01:06]} 24. Rhd1 {[%clk 0:01:54]}  Rg3 {[%clk 0:00:57]} 25. Rf1 {[%clk 0:01:43]}  Be7 {[%clk 0:00:41]} 26. Bg5 {[%clk 0:01:42]}  b5 {[%clk 0:00:37]} 27. Rh2 {[%clk 0:01:24]}  Rxc3 {[%clk 0:00:22]} 28. bxc3 {[%clk 0:01:24]}  Nd7 {[%clk 0:00:20]} 29. f4 {[%clk 0:00:57]}  exf4 {[%clk 0:00:19]} 30. Bxe7 {[%clk 0:00:57]}  Kxe7 {[%clk 0:00:17]} 31. Rxf4 {[%clk 0:00:57]}  Rxc3 {[%clk 0:00:17]} 32. Rf5 {[%clk 0:00:56]}  Ne5 {[%clk 0:00:15]} 33. Rxh5 {[%clk 0:00:54]}  Re3 {[%clk 0:00:15]} 34. Rg5 {[%clk 0:00:48]}  Nf3 {[%clk 0:00:14]} 35. Rgg2 {[%clk 0:00:42]}  Nxh2 {[%clk 0:00:10]} 36. Rxh2 {[%clk 0:00:43]}  Rxe4 {[%clk 0:00:10]} 37. h5 {[%clk 0:00:43]}  Kf8 {[%clk 0:00:09]} 38. h6 {[%clk 0:00:42]}  Kg8 {[%clk 0:00:09]} 39. Rg2+ {[%clk 0:00:41]}  Kh7 {[%clk 0:00:08]} 40. Rg7+ {[%clk 0:00:42]}  Kxh6 {[%clk 0:00:08]} 41. Rxf7 {[%clk 0:00:42]}  Kg6 {[%clk 0:00:03]} 42. Ra7 {[%clk 0:00:42]}  Ra4 {[%clk 0:00:03]} 43. Rd7 {[%clk 0:00:42]}  Rd4 {[%clk 0:00:03]} 44. c3 {[%clk 0:00:42]}  Rd5 {[%clk 0:00:03]} 45. Ra7 {[%clk 0:00:41]}  Rc5 {[%clk 0:00:04]} 46. Kc2 {[%clk 0:00:41]}  Kf6 {[%clk 0:00:03]} 47. Rxa6 {[%clk 0:00:41]}  Ke5 {[%clk 0:00:03]} 48. Kb3 {[%clk 0:00:41]}  Kd5 {[%clk 0:00:02]} 49. Rb6 {[%clk 0:00:37]}  Ke6 {[%clk 0:00:01]} 50. Kb4 {[%clk 0:00:36]}  Rc4+ {[%clk 0:00:01]} 51. Kxb5 {[%clk 0:00:37]}  Rxc3 {[%clk 0:00:01]} 52. a4 {[%clk 0:00:37]}  Rb3+ {[%clk 0:00:02]} 53. Kc6 {[%clk 0:00:37]}  Rxb6+ {[%clk 0:00:02]} 54. Kxb6 {[%clk 0:00:37]}  d5 {[%clk 0:00:02]} 55. a5 {[%clk 0:00:24]}  d4 {[%clk 0:00:03]} 56. a6 {[%clk 0:00:24]}  d3 {[%clk 0:00:03]} 57. a7 {[%clk 0:00:24]}  d2 {[%clk 0:00:04]} 58. a8=Q {[%clk 0:00:25]}  d1=Q {[%clk 0:00:05]} 59. Qe8+ {[%clk 0:00:25]}  Kf6 {[%clk 0:00:04]} 60. Qf8+ {[%clk 0:00:25]}  Kg6 {[%clk 0:00:04]} 61. Qg8+ {[%clk 0:00:25]}  Kh6 {[%clk 0:00:05]} 62. Qe6+ {[%clk 0:00:24]}  Kh7 {[%clk 0:00:05]} 63. Qf5+ {[%clk 0:00:24]}  Kh8 {[%clk 0:00:05]} 64. Qc8+ {[%clk 0:00:23]}  Kh7 {[%clk 0:00:05]} 65. Qc7+ {[%clk 0:00:23]}  Kh8 {[%clk 0:00:05]} 66. Kb7 {[%clk 0:00:22]}  Qh5 {[%clk 0:00:04]} 67. Kc8 {[%clk 0:00:21]}  Qe8+ {[%clk 0:00:03]} 68. Qd8 {[%clk 0:00:21]}  Qxd8+ {[%clk 0:00:03]} 69. Kxd8 {[%clk 0:00:22]} 1/2-1/2


[Site "https://www.chess.com"]

[Event "Titled Tuesday Blitz August 31 2021"]
[White "Tokman, Ariel"]
[Black "Nazaretyan, Tigran"]
[WhiteFideId "117420"]
[BlackFideId "24162345"]
[WhiteElo "2345"]
[BlackElo "2167"]
[Result "1-0"]
[Round "06"]
[TimeControl "180+1"]
[Date "2021.08.31"]
[WhiteClock "0:00:18"]
[BlackClock "0:00:13"]

1. Nf3 {[%clk 0:02:52]}  Nf6 {[%clk 0:02:59]} 2. c4 {[%clk 0:02:51]}  g6 {[%clk 0:02:59]} 3. b3 {[%clk 0:02:52]}  Bg7 {[%clk 0:02:59]} 4. Bb2 {[%clk 0:02:53]}  O-O {[%clk 0:02:59]} 5. e3 {[%clk 0:02:52]}  c5 {[%clk 0:02:59]} 6. Be2 {[%clk 0:02:52]}  Nc6 {[%clk 0:02:56]} 7. O-O {[%clk 0:02:52]}  b6 {[%clk 0:02:55]} 8. a3 {[%clk 0:02:52]}  Bb7 {[%clk 0:02:55]} 9. d3 {[%clk 0:02:53]}  Re8 {[%clk 0:02:53]} 10. Nbd2 {[%clk 0:02:53]}  e5 {[%clk 0:02:53]} 11. Ra2 {[%clk 0:02:50]}  d5 {[%clk 0:02:48]} 12. cxd5 {[%clk 0:02:50]}  Nxd5 {[%clk 0:02:47]} 13. Qa1 {[%clk 0:02:49]}  Qe7 {[%clk 0:02:42]} 14. Rc1 {[%clk 0:02:47]}  Rad8 {[%clk 0:02:42]} 15. Nc4 {[%clk 0:02:29]}  f5 {[%clk 0:02:33]} 16. Bf1 {[%clk 0:02:21]}  g5 {[%clk 0:02:31]} 17. e4 {[%clk 0:02:13]}  fxe4 {[%clk 0:02:27]} 18. dxe4 {[%clk 0:02:14]}  Nf4 {[%clk 0:02:27]} 19. Ne3 {[%clk 0:02:13]}  Bc8 {[%clk 0:02:15]} 20. b4 {[%clk 0:02:03]}  Nd4 {[%clk 0:02:11]} 21. Bxd4 {[%clk 0:01:49]}  cxd4 {[%clk 0:02:09]} 22. Bc4+ {[%clk 0:01:14]}  Kh8 {[%clk 0:02:08]} 23. Nd5 {[%clk 0:01:15]}  Nxd5 {[%clk 0:01:57]} 24. Bxd5 {[%clk 0:01:13]}  g4 {[%clk 0:01:54]} 25. Nd2 {[%clk 0:01:10]}  Rf8 {[%clk 0:01:51]} 26. Nf1 {[%clk 0:01:10]}  Rf4 {[%clk 0:01:44]} 27. Rac2 {[%clk 0:01:08]}  Ba6 {[%clk 0:01:39]} 28. Ng3 {[%clk 0:01:02]}  Qf8 {[%clk 0:01:31]} 29. Qa2 {[%clk 0:00:53]}  Bh6 {[%clk 0:01:16]} 30. Rd1 {[%clk 0:00:26]}  d3 {[%clk 0:01:14]} 31. Rc7 {[%clk 0:00:25]}  Rf6 {[%clk 0:00:57]} 32. Nf5 {[%clk 0:00:24]}  Rxf5 {[%clk 0:00:55]} 33. exf5 {[%clk 0:00:24]}  Qd6 {[%clk 0:00:51]} 34. Rxa7 {[%clk 0:00:18]}  Bb5 {[%clk 0:00:50]} 35. Be4 {[%clk 0:00:16]}  Rd7 {[%clk 0:00:41]} 36. Ra8+ {[%clk 0:00:14]}  Rd8 {[%clk 0:00:41]} 37. Rxd8+ {[%clk 0:00:13]}  Qxd8 {[%clk 0:00:40]} 38. Qe6 {[%clk 0:00:11]}  Bg7 {[%clk 0:00:36]} 39. f6 {[%clk 0:00:10]}  Bxf6 {[%clk 0:00:33]} 40. Qf5 {[%clk 0:00:11]}  Kg7 {[%clk 0:00:24]} 41. Qxh7+ {[%clk 0:00:10]}  Kf8 {[%clk 0:00:24]} 42. Bxd3 {[%clk 0:00:10]}  Bxd3 {[%clk 0:00:21]} 43. Qxd3 {[%clk 0:00:10]}  Qc7 {[%clk 0:00:18]} 44. Qe4 {[%clk 0:00:09]}  Qc8 {[%clk 0:00:15]} 45. g3 {[%clk 0:00:07]}  Ke7 {[%clk 0:00:15]} 46. a4 {[%clk 0:00:08]}  Bg7 {[%clk 0:00:13]} 47. Qd5 {[%clk 0:00:08]}  Qe6 {[%clk 0:00:12]} 48. Qxe6+ {[%clk 0:00:08]}  Kxe6 {[%clk 0:00:12]} 49. Kf1 {[%clk 0:00:08]}  e4 {[%clk 0:00:11]} 50. Ke2 {[%clk 0:00:08]}  Bc3 {[%clk 0:00:11]} 51. Ke3 {[%clk 0:00:07]}  Bxb4 {[%clk 0:00:10]} 52. Kxe4 {[%clk 0:00:08]}  Bc5 {[%clk 0:00:11]} 53. Rd2 {[%clk 0:00:08]}  Bb4 {[%clk 0:00:08]} 54. Rc2 {[%clk 0:00:08]}  Kd6 {[%clk 0:00:06]} 55. Kf4 {[%clk 0:00:08]}  Kd5 {[%clk 0:00:07]} 56. Kxg4 {[%clk 0:00:08]}  Ke4 {[%clk 0:00:06]} 57. f3+ {[%clk 0:00:08]}  Kd3 {[%clk 0:00:06]} 58. Rc8 {[%clk 0:00:09]}  Ba5 {[%clk 0:00:07]} 59. f4 {[%clk 0:00:10]}  Ke4 {[%clk 0:00:07]} 60. f5 {[%clk 0:00:10]}  Ke5 {[%clk 0:00:08]} 61. h4 {[%clk 0:00:11]}  Kf6 {[%clk 0:00:07]} 62. Rc6+ {[%clk 0:00:11]}  Kg7 {[%clk 0:00:08]} 63. Re6 {[%clk 0:00:12]}  Kf7 {[%clk 0:00:07]} 64. Rc6 {[%clk 0:00:13]}  Kg7 {[%clk 0:00:07]} 65. h5 {[%clk 0:00:13]}  Kf7 {[%clk 0:00:08]} 66. h6 {[%clk 0:00:14]}  Kg8 {[%clk 0:00:08]} 67. Kh5 {[%clk 0:00:15]}  Kh7 {[%clk 0:00:09]} 68. g4 {[%clk 0:00:16]}  Kg8 {[%clk 0:00:09]} 69. g5 {[%clk 0:00:17]}  Bd2 {[%clk 0:00:09]} 70. Rc8+ {[%clk 0:00:16]}  Kf7 {[%clk 0:00:09]} 71. g6+ {[%clk 0:00:17]}  Kf6 {[%clk 0:00:10]} 72. h7 {[%clk 0:00:17]}  Kg7 {[%clk 0:00:10]} 73. Rg8+ {[%clk 0:00:16]}  Kf6 {[%clk 0:00:10]} 74. h8=Q+ {[%clk 0:00:16]}  Kxf5 {[%clk 0:00:11]} 75. Rf8+ {[%clk 0:00:16]}  Ke4 {[%clk 0:00:11]} 76. Re8+ {[%clk 0:00:16]}  Kd3 {[%clk 0:00:11]} 77. Rd8+ {[%clk 0:00:16]}  Kc2 {[%clk 0:00:12]} 78. Rxd2+ {[%clk 0:00:17]}  Kxd2 {[%clk 0:00:12]} 79. Qd4+ {[%clk 0:00:17]}  Kc2 {[%clk 0:00:12]} 80. Qxb6 {[%clk 0:00:18]}  Kd3 {[%clk 0:00:12]} 81. g7 {[%clk 0:00:18]}  Ke4 {[%clk 0:00:13]} 82. g8=Q {[%clk 0:00:18]} 1-0


[Site "https://www.chess.com"]

[Event "Titled Tuesday Blitz August 31 2021"]
[White "Ulko, Jaroslav"]
[Black "Tomiello, Mateus Costamilan"]
[WhiteFideId "4116658"]
[BlackFideId "22701958"]
[WhiteElo "2304"]
[BlackElo "1975"]
[Result "0-1"]
[Round "06"]
[TimeControl "180+1"]
[Date "2021.08.31"]
[WhiteClock "0:00:02"]
[BlackClock "0:00:03"]

1. d4 {[%clk 0:03:00]}  Nf6 {[%clk 0:02:59]} 2. Nf3 {[%clk 0:03:00]}  d5 {[%clk 0:02:59]} 3. c4 {[%clk 0:03:00]}  c6 {[%clk 0:02:58]} 4. Nc3 {[%clk 0:02:58]}  e6 {[%clk 0:02:58]} 5. Bg5 {[%clk 0:02:56]}  h6 {[%clk 0:02:56]} 6. Bxf6 {[%clk 0:02:55]}  Qxf6 {[%clk 0:02:57]} 7. e3 {[%clk 0:02:55]}  Nd7 {[%clk 0:02:54]} 8. Qc2 {[%clk 0:02:52]}  Qd8 {[%clk 0:02:41]} 9. Bd3 {[%clk 0:02:43]}  Nf6 {[%clk 0:02:39]} 10. O-O {[%clk 0:02:41]}  Be7 {[%clk 0:02:36]} 11. Rad1 {[%clk 0:02:39]}  O-O {[%clk 0:02:35]} 12. Ne5 {[%clk 0:02:39]}  a5 {[%clk 0:02:10]} 13. cxd5 {[%clk 0:02:31]}  exd5 {[%clk 0:02:09]} 14. h3 {[%clk 0:02:30]}  Bd6 {[%clk 0:02:07]} 15. f4 {[%clk 0:02:28]}  Re8 {[%clk 0:01:58]} 16. g4 {[%clk 0:02:27]}  h5 {[%clk 0:01:32]} 17. g5 {[%clk 0:01:22]}  Ne4 {[%clk 0:01:30]} 18. Qg2 {[%clk 0:01:16]}  Bxe5 {[%clk 0:00:46]} 19. dxe5 {[%clk 0:01:07]}  Nxc3 {[%clk 0:00:46]} 20. bxc3 {[%clk 0:01:07]}  g6 {[%clk 0:00:42]} 21. c4 {[%clk 0:00:53]}  Qb6 {[%clk 0:00:32]} 22. cxd5 {[%clk 0:00:32]}  Qxe3+ {[%clk 0:00:32]} 23. Kh2 {[%clk 0:00:31]}  cxd5 {[%clk 0:00:28]} 24. Bb5 {[%clk 0:00:23]}  Rd8 {[%clk 0:00:24]} 25. Rxd5 {[%clk 0:00:14]}  Rxd5 {[%clk 0:00:22]} 26. Qxd5 {[%clk 0:00:14]}  Qxh3+ {[%clk 0:00:23]} 27. Kg1 {[%clk 0:00:14]}  Qg3+ {[%clk 0:00:23]} 28. Qg2 {[%clk 0:00:13]}  Qxg2+ {[%clk 0:00:21]} 29. Kxg2 {[%clk 0:00:13]}  Be6 {[%clk 0:00:22]} 30. Rc1 {[%clk 0:00:11]}  Rc8 {[%clk 0:00:22]} 31. Rd1 {[%clk 0:00:08]}  Rc2+ {[%clk 0:00:20]} 32. Kg3 {[%clk 0:00:08]}  Rxa2 {[%clk 0:00:18]} 33. Rd8+ {[%clk 0:00:08]}  Kg7 {[%clk 0:00:18]} 34. Rb8 {[%clk 0:00:08]}  Bd5 {[%clk 0:00:14]} 35. Rd8 {[%clk 0:00:08]}  Ra3+ {[%clk 0:00:08]} 36. Kh2 {[%clk 0:00:06]}  Be6 {[%clk 0:00:05]} 37. Rb8 {[%clk 0:00:04]}  h4 {[%clk 0:00:05]} 38. Rxb7 {[%clk 0:00:04]}  Ra2+ {[%clk 0:00:06]} 39. Kg1 {[%clk 0:00:04]}  h3 {[%clk 0:00:05]} 40. Bc6 {[%clk 0:00:04]}  h2+ {[%clk 0:00:05]} 41. Kh1 {[%clk 0:00:04]}  Rc2 {[%clk 0:00:05]} 42. Be4 {[%clk 0:00:04]}  Re2 {[%clk 0:00:05]} 43. Bc6 {[%clk 0:00:04]}  Rf2 {[%clk 0:00:03]} 44. Ra7 {[%clk 0:00:03]}  Rxf4 {[%clk 0:00:02]} 45. Kxh2 {[%clk 0:00:03]}  Rf5 {[%clk 0:00:02]} 46. Rxa5 {[%clk 0:00:03]}  Rxg5 {[%clk 0:00:03]} 47. Bf3 {[%clk 0:00:03]}  Rf5 {[%clk 0:00:03]} 48. Kg3 {[%clk 0:00:03]}  g5 {[%clk 0:00:03]} 49. Bg4 {[%clk 0:00:02]}  Rf4 {[%clk 0:00:02]} 50. Bxe6 {[%clk 0:00:03]}  fxe6 {[%clk 0:00:02]} 51. Ra8 {[%clk 0:00:02]}  Kg6 {[%clk 0:00:03]} 0-1


[Site "https://www.chess.com"]

[Event "Titled Tuesday Blitz August 31 2021"]
[White "Wagner, Dennis"]
[Black "Chasin, Nico"]
[WhiteFideId "24650684"]
[BlackFideId "30908477"]
[WhiteElo "2355"]
[BlackElo "2065"]
[Result "1-0"]
[Round "06"]
[TimeControl "180+1"]
[Date "2021.08.31"]
[WhiteClock "0:00:02"]
[BlackClock "0:00:55"]

1. e4 {[%clk 0:03:00]}  c5 {[%clk 0:02:59]} 2. c3 {[%clk 0:03:00]}  Nf6 {[%clk 0:02:59]} 3. e5 {[%clk 0:03:00]}  Nd5 {[%clk 0:02:59]} 4. Nf3 {[%clk 0:03:01]}  d6 {[%clk 0:02:58]} 5. exd6 {[%clk 0:03:00]}  e6 {[%clk 0:02:58]} 6. g3 {[%clk 0:02:52]}  Bxd6 {[%clk 0:02:58]} 7. Bg2 {[%clk 0:02:52]}  Nc6 {[%clk 0:02:58]} 8. O-O {[%clk 0:02:51]}  O-O {[%clk 0:02:58]} 9. d4 {[%clk 0:02:52]}  Nf6 {[%clk 0:02:57]} 10. Be3 {[%clk 0:02:49]}  Qe7 {[%clk 0:02:54]} 11. Nbd2 {[%clk 0:02:38]}  Rd8 {[%clk 0:02:53]} 12. Nc4 {[%clk 0:02:36]}  Bc7 {[%clk 0:02:52]} 13. Qe2 {[%clk 0:02:29]}  cxd4 {[%clk 0:02:40]} 14. Nxd4 {[%clk 0:02:26]}  Nxd4 {[%clk 0:02:39]} 15. Bxd4 {[%clk 0:02:26]}  Nd5 {[%clk 0:02:03]} 16. Rfe1 {[%clk 0:02:26]}  b5 {[%clk 0:02:03]} 17. Ne3 {[%clk 0:02:06]}  Bb7 {[%clk 0:02:02]} 18. Nf5 {[%clk 0:01:54]}  Qg5 {[%clk 0:01:53]} 19. Ne3 {[%clk 0:00:58]}  a6 {[%clk 0:01:52]} 20. h4 {[%clk 0:00:55]}  Qg6 {[%clk 0:01:44]} 21. Ng4 {[%clk 0:00:43]}  Rac8 {[%clk 0:01:35]} 22. Ne5 {[%clk 0:00:20]}  Qh6 {[%clk 0:01:23]} 23. Qg4 {[%clk 0:00:03]}  f6 {[%clk 0:00:55]} 24. Qxe6+ {[%clk 0:00:02]} 1-0


[Site "https://www.chess.com"]

[Event "Titled Tuesday Blitz August 31 2021"]
[White "Abdusattorov, Nodirbek"]
[Black "Boyer, Mahel"]
[WhiteFideId "14204118"]
[BlackFideId "45102422"]
[WhiteElo "2662"]
[BlackElo "2328"]
[Result "1/2-1/2"]
[Round "07"]
[TimeControl "180+1"]
[Date "2021.08.31"]
[WhiteClock "0:00:04"]
[BlackClock "0:00:06"]

1. e4 {[%clk 0:03:00]}  Nc6 {[%clk 0:03:00]} 2. Nf3 {[%clk 0:02:59]}  d5 {[%clk 0:03:00]} 3. exd5 {[%clk 0:02:59]}  Qxd5 {[%clk 0:03:01]} 4. Nc3 {[%clk 0:03:00]}  Qh5 {[%clk 0:03:01]} 5. Bb5 {[%clk 0:02:54]}  Bg4 {[%clk 0:03:01]} 6. Bxc6+ {[%clk 0:02:54]}  bxc6 {[%clk 0:03:01]} 7. d3 {[%clk 0:02:52]}  e6 {[%clk 0:02:56]} 8. Ne4 {[%clk 0:02:46]}  Nf6 {[%clk 0:02:54]} 9. Ng3 {[%clk 0:02:44]}  Qd5 {[%clk 0:02:51]} 10. h3 {[%clk 0:02:38]}  Bxf3 {[%clk 0:02:48]} 11. Qxf3 {[%clk 0:02:39]}  Qxf3 {[%clk 0:02:47]} 12. gxf3 {[%clk 0:02:40]}  Nd5 {[%clk 0:02:19]} 13. Ke2 {[%clk 0:02:37]}  f5 {[%clk 0:02:17]} 14. c4 {[%clk 0:02:37]}  Nb4 {[%clk 0:02:16]} 15. Be3 {[%clk 0:02:26]}  c5 {[%clk 0:02:09]} 16. f4 {[%clk 0:02:21]}  Bd6 {[%clk 0:02:07]} 17. h4 {[%clk 0:02:06]}  Kd7 {[%clk 0:01:51]} 18. h5 {[%clk 0:02:06]}  g5 {[%clk 0:01:47]} 19. fxg5 {[%clk 0:01:38]}  f4 {[%clk 0:01:47]} 20. Ne4 {[%clk 0:01:37]}  fxe3 {[%clk 0:01:47]} 21. fxe3 {[%clk 0:01:38]}  Be7 {[%clk 0:01:42]} 22. Rag1 {[%clk 0:01:33]}  Nc6 {[%clk 0:01:39]} 23. g6 {[%clk 0:01:31]}  hxg6 {[%clk 0:01:40]} 24. Rxg6 {[%clk 0:01:30]}  Rag8 {[%clk 0:01:35]} 25. Rxg8 {[%clk 0:01:30]}  Rxg8 {[%clk 0:01:36]} 26. h6 {[%clk 0:01:31]}  Ne5 {[%clk 0:01:34]} 27. Rh5 {[%clk 0:01:31]}  Nf7 {[%clk 0:01:26]} 28. h7 {[%clk 0:01:31]}  Rh8 {[%clk 0:01:25]} 29. Kf3 {[%clk 0:01:24]}  Ke8 {[%clk 0:01:22]} 30. Kf4 {[%clk 0:01:13]}  Bd6+ {[%clk 0:01:17]} 31. Kf3 {[%clk 0:01:11]}  Ke7 {[%clk 0:01:16]} 32. Ke2 {[%clk 0:01:04]}  Ne5 {[%clk 0:01:06]} 33. d4 {[%clk 0:00:58]}  cxd4 {[%clk 0:01:07]} 34. c5 {[%clk 0:00:57]}  d3+ {[%clk 0:00:46]} 35. Kd2 {[%clk 0:00:55]}  Nf3+ {[%clk 0:00:44]} 36. Kxd3 {[%clk 0:00:54]}  Be5 {[%clk 0:00:43]} 37. Ke2 {[%clk 0:00:51]}  Rf8 {[%clk 0:00:33]} 38. b4 {[%clk 0:00:40]}  Ng1+ {[%clk 0:00:32]} 39. Kd3 {[%clk 0:00:41]}  Rd8+ {[%clk 0:00:28]} 40. Kc4 {[%clk 0:00:40]}  Nf3 {[%clk 0:00:28]} 41. Kb5 {[%clk 0:00:39]}  Rb8+ {[%clk 0:00:23]} 42. Ka6 {[%clk 0:00:19]}  Bh8 {[%clk 0:00:15]} 43. b5 {[%clk 0:00:19]}  Ne5 {[%clk 0:00:15]} 44. a4 {[%clk 0:00:18]}  Nc4 {[%clk 0:00:10]} 45. Kxa7 {[%clk 0:00:18]}  Rd8 {[%clk 0:00:09]} 46. Kb7 {[%clk 0:00:18]}  Nxe3 {[%clk 0:00:08]} 47. Kxc7 {[%clk 0:00:18]}  Nd5+ {[%clk 0:00:08]} 48. Kb7 {[%clk 0:00:18]}  Rd7+ {[%clk 0:00:08]} 49. Ka6 {[%clk 0:00:14]}  Nc7+ {[%clk 0:00:06]} 50. Ka5 {[%clk 0:00:13]}  Rd4 {[%clk 0:00:06]} 51. b6 {[%clk 0:00:12]}  Rxe4 {[%clk 0:00:05]} 52. bxc7 {[%clk 0:00:12]}  Kd7 {[%clk 0:00:06]} 53. Rh3 {[%clk 0:00:03]}  Kxc7 {[%clk 0:00:05]} 54. Kb5 {[%clk 0:00:03]}  Re1 {[%clk 0:00:04]} 55. Rf3 {[%clk 0:00:03]}  Rb1+ {[%clk 0:00:04]} 56. Kc4 {[%clk 0:00:04]}  Kc6 {[%clk 0:00:05]} 57. Rf8 {[%clk 0:00:03]}  Rc1+ {[%clk 0:00:04]} 58. Kb3 {[%clk 0:00:03]}  Be5 {[%clk 0:00:02]} 59. h8=Q {[%clk 0:00:03]}  Bxh8 {[%clk 0:00:02]} 60. Rxh8 {[%clk 0:00:04]}  Rxc5 {[%clk 0:00:03]} 61. Kb4 {[%clk 0:00:04]}  Rf5 {[%clk 0:00:02]} 62. Rc8+ {[%clk 0:00:03]}  Kb6 {[%clk 0:00:02]} 63. Re8 {[%clk 0:00:03]}  Rf4+ {[%clk 0:00:03]} 64. Kb3 {[%clk 0:00:04]}  Kc5 {[%clk 0:00:02]} 65. Rxe6 {[%clk 0:00:04]}  Rf3+ {[%clk 0:00:03]} 66. Kb2 {[%clk 0:00:03]}  Kb4 {[%clk 0:00:03]} 67. Re4+ {[%clk 0:00:04]}  Ka5 {[%clk 0:00:04]} 68. Kc2 {[%clk 0:00:03]}  Rg3 {[%clk 0:00:04]} 69. Kd2 {[%clk 0:00:03]}  Ra3 {[%clk 0:00:04]} 70. Kc2 {[%clk 0:00:03]}  Rxa4 {[%clk 0:00:05]} 71. Rxa4+ {[%clk 0:00:04]}  Kxa4 {[%clk 0:00:06]} 1/2-1/2


[Site "https://www.chess.com"]

[Event "Titled Tuesday Blitz August 31 2021"]
[White "Andreikin, Dmitry"]
[Black "Fier, Alexandr"]
[WhiteFideId "4158814"]
[BlackFideId "2107139"]
[WhiteElo "2782"]
[BlackElo "2569"]
[Result "1-0"]
[Round "07"]
[TimeControl "180+1"]
[Date "2021.08.31"]
[WhiteClock "0:00:09"]
[BlackClock "0:00:13"]

1. Nf3 {[%clk 0:03:00]}  d5 {[%clk 0:02:55]} 2. d4 {[%clk 0:03:00]}  Nf6 {[%clk 0:02:48]} 3. c4 {[%clk 0:03:00]}  e6 {[%clk 0:02:48]} 4. Nc3 {[%clk 0:03:00]}  c6 {[%clk 0:02:49]} 5. g3 {[%clk 0:02:59]}  dxc4 {[%clk 0:02:47]} 6. Bg2 {[%clk 0:03:00]}  Nbd7 {[%clk 0:02:47]} 7. O-O {[%clk 0:03:00]}  b5 {[%clk 0:02:47]} 8. e4 {[%clk 0:02:57]}  Be7 {[%clk 0:02:44]} 9. d5 {[%clk 0:02:56]}  cxd5 {[%clk 0:02:40]} 10. exd5 {[%clk 0:02:56]}  exd5 {[%clk 0:02:34]} 11. Nxd5 {[%clk 0:02:51]}  Nxd5 {[%clk 0:02:30]} 12. Qxd5 {[%clk 0:02:50]}  Rb8 {[%clk 0:02:30]} 13. Bf4 {[%clk 0:02:41]}  Rb6 {[%clk 0:02:30]} 14. Be3 {[%clk 0:02:21]}  Bb7 {[%clk 0:02:20]} 15. Bxb6 {[%clk 0:02:20]}  Qxb6 {[%clk 0:02:20]} 16. Qd4 {[%clk 0:02:08]}  Bxf3 {[%clk 0:01:44]} 17. Qxb6 {[%clk 0:02:08]}  Nxb6 {[%clk 0:01:44]} 18. Bxf3 {[%clk 0:02:07]}  O-O {[%clk 0:01:45]} 19. Rad1 {[%clk 0:01:46]}  Bf6 {[%clk 0:01:44]} 20. b3 {[%clk 0:01:45]}  c3 {[%clk 0:01:41]} 21. Be4 {[%clk 0:01:45]}  g6 {[%clk 0:01:39]} 22. Bc2 {[%clk 0:01:38]}  Re8 {[%clk 0:01:32]} 23. Rfe1 {[%clk 0:01:36]}  Rxe1+ {[%clk 0:01:32]} 24. Rxe1 {[%clk 0:01:37]}  Nd5 {[%clk 0:01:33]} 25. a3 {[%clk 0:01:34]}  Kf8 {[%clk 0:01:19]} 26. Kf1 {[%clk 0:01:28]}  Nb6 {[%clk 0:01:16]} 27. Re4 {[%clk 0:01:21]}  Be7 {[%clk 0:01:14]} 28. a4 {[%clk 0:01:13]}  bxa4 {[%clk 0:01:14]} 29. bxa4 {[%clk 0:01:13]}  a5 {[%clk 0:01:15]} 30. Ke2 {[%clk 0:01:07]}  Nd5 {[%clk 0:01:13]} 31. Bb3 {[%clk 0:01:01]}  Nb4 {[%clk 0:01:12]} 32. Kd1 {[%clk 0:00:47]}  Nd3 {[%clk 0:00:58]} 33. Kc2 {[%clk 0:00:46]}  f5 {[%clk 0:00:38]} 34. Re2 {[%clk 0:00:36]}  Nc5 {[%clk 0:00:37]} 35. Kxc3 {[%clk 0:00:35]}  Ne4+ {[%clk 0:00:37]} 36. Kc4 {[%clk 0:00:33]}  Bb4 {[%clk 0:00:36]} 37. Bc2 {[%clk 0:00:33]}  Nf6 {[%clk 0:00:32]} 38. h3 {[%clk 0:00:31]}  h5 {[%clk 0:00:32]} 39. f3 {[%clk 0:00:25]}  Kf7 {[%clk 0:00:26]} 40. Bb3 {[%clk 0:00:24]}  Nh7 {[%clk 0:00:25]} 41. Kb5+ {[%clk 0:00:23]}  Kf8 {[%clk 0:00:25]} 42. Re6 {[%clk 0:00:20]}  Kg7 {[%clk 0:00:25]} 43. Ra6 {[%clk 0:00:14]}  Ng5 {[%clk 0:00:24]} 44. Rxa5 {[%clk 0:00:15]}  Bxa5 {[%clk 0:00:24]} 45. Kxa5 {[%clk 0:00:16]}  Nxh3 {[%clk 0:00:22]} 46. f4 {[%clk 0:00:11]}  h4 {[%clk 0:00:21]} 47. gxh4 {[%clk 0:00:11]}  Nxf4 {[%clk 0:00:22]} 48. Kb6 {[%clk 0:00:10]}  Ng2 {[%clk 0:00:13]} 49. a5 {[%clk 0:00:10]}  Nxh4 {[%clk 0:00:14]} 50. a6 {[%clk 0:00:09]}  g5 {[%clk 0:00:15]} 51. a7 {[%clk 0:00:09]}  g4 {[%clk 0:00:15]} 52. a8=Q {[%clk 0:00:09]}  Kg6 {[%clk 0:00:16]} 53. Qg8+ {[%clk 0:00:09]}  Kh6 {[%clk 0:00:15]} 54. Qh8+ {[%clk 0:00:08]}  Kg5 {[%clk 0:00:15]} 55. Qd8+ {[%clk 0:00:09]}  Kh5 {[%clk 0:00:13]} 56. Bf7+ {[%clk 0:00:09]} 1-0


[Site "https://www.chess.com"]